Cogmind - Beta 12 @@@ ROGUE MODE // 2023.04.06 @ 13:54:16 Player: Momo Result: Destroyed by YI-UF0 with YI-UF0's Doublenader Performance ------------- Evolutions (0) 0 Regions Visited (4) 800 Robots Destroyed (9) 45 Value Destroyed (341) 341 Prototype IDs (23) 460 Alien Tech Used (0) 0 Bonus (300) 300 TOTAL SCORE: 1946 Bonus ------- Aligned with FarCom 300 Cogmind --------- Core Integrity 0/250 Matter 300/300 Energy 250/250 System Corruption 1% Temperature Cool (0) Movement Rolling (190) Ox6 Location -9/Mines Parts ------- > --- POWER (1) -------- Ion Engine > --- PROPULSION (2) --- Compact Wheel Compact Wheel > --- UTILITY (2) ------ Humpback > --- WEAPON (2) ------- EM Shotgun EM Shotgun > --- INVENTORY (35) --- Light Ion Engine Makeshift Power Source Carbon-fiber Leg Makeshift Leg Wheel Armored Wheel Armored Wheel Armored Wheel Large Storage Unit High-capacity Storage Unit Humpback High-capacity Matter Pod (154) Improved Light Armor Plating Beamcaster AWS/Thermal Guided Plasma Cannon Mini Grenade Launcher Peak State ------------ > --- POWER ------------ Ion Engine > --- PROPULSION ------- Carbon-fiber Leg Makeshift Leg > --- UTILITY ---------- Large Storage Unit Improved Light Armor Plating > --- WEAPON ----------- EM Shotgun Grenade Launcher > --- INVENTORY -------- Makeshift Power Source Compact Wheel Compact Wheel Armored Wheel Armored Wheel Armored Wheel EM Shotgun Beamcaster Mini Grenade Launcher [Rating: 17] Favorites ----------- Power Ion Engine Engine Ion Engine Propulsion Armored Wheel Leg Carbon-fiber Leg Wheel Armored Wheel Utility Large Storage Unit Device Structural Scanner Storage Large Storage Unit Protection Improved Light Armor Plating Weapon EM Shotgun Energy Gun EM Shotgun Ballistic Gun Assault Rifle Launcher Grenade Launcher Build | -11 -10 -10 -10 -9 ------- Run | Jun Mat Min Exi Min Slots Evolved . | . . . . . Power . | . . . . . Propulsion . | . . . . . Utility . | . . . . . Weapon . | . . . . . Parts Attached 23 | 4 7 8 4 . Power 1 | . . 1 . . Engine 1 | . . 1 . . Core . | . . . . . Reactor . | . . . . . Propulsion 9 | 2 2 3 2 . Treads . | . . . . . Leg 2 | . . 2 . . Wheel 7 | 2 2 1 2 . Hover . | . . . . . Flight . | . . . . . Utility 4 | . 2 1 1 . Device 1 | . 1 . . . Storage 2 | . 1 . 1 . Processor . | . . . . . Hackware . | . . . . . Protection 1 | . . 1 . . Artifact . | . . . . . Weapon 9 | 2 3 3 1 . Energy Gun 7 | 1 3 2 1 . Energy Cannon . | . . . . . Ballistic Gun 1 | 1 . . . . Ballistic Cannon . | . . . . . Launcher 1 | . . 1 . . Special Weapon . | . . . . . Impact Weapon . | . . . . . Slashing Weapon . | . . . . . Piercing Weapon . | . . . . . Special Melee Weapon . | . . . . . Unidentified Prototypes . | . . . . . Parts Lost 4 | . . 4 . . Power . | . . . . . Propulsion 1 | . . 1 . . Utility . | . . . . . Weapon 3 | . . 3 . . Highest Loss Streak 1 | . . 1 . . To Critical Strikes . | . . . . . Average Slot Usage (%) 85 | . 60 88 89 85 Engine 11 | . . 11 14 14 Leg 8 | . . 11 7 . Wheel 19 | . 28 16 20 28 Device 1 | . 9 . . . Storage 12 | . 1 14 14 14 Protection 6 | . . 7 9 . Energy Gun 20 | . 8 20 22 28 Ballistic Gun 1 | . 12 . . . Launcher 3 | . . 5 . . Naked Turns . | . . . . . Heaviest Build 211 | 3 26 34 211 211 Greatest Support 35 | 16 24 35 35 32 Greatest Overweight (x) 6 | . 1 2 6 6 Average Overweight (x) . | . . . 1 6 Largest Inventory Capacity 35 | 5 15 15 35 35 Average Capacity 16 | 5 6 15 21 35 Most Carried 19 | 4 8 13 19 19 Average Carried 9 | 1 4 8 14 19 Final Capacity 35 | 5 15 15 35 35 Final Carried 19 | 4 7 13 19 19 Class Distribution -------------------- 55% | Mutant 32% | Scavenger-Mutant 12% | Hauler-Mutant Dominant Class ---------------- Mutant | -10/Materials Mutant | -10/Mines Mutant | -10/Exiles Hauler-Mutant | -9/Mines Resources | -11 -10 -10 -10 -9 ----------- Run | Jun Mat Min Exi Min Matter Collected 549 | 240 38 225 46 . Remotely . | . . . . . Salvage Created 441 | . 74 367 . . Parts 23 | . 7 16 . . Haulers Intercepted . | . . . . . Recyclers Shooed . | . . . . . Parts Field Recycled . | . . . . . Retrieved Matter . | . . . . . Parts Self-Destructed . | . . . . . Prevented . | . . . . . Kills | -11 -10 -10 -10 -9 ------- Run | Jun Mat Min Exi Min Combat Hostiles Destroyed 21 | . 2 19 . . Guns 10 | . 2 8 . . AOE 10 | . . 10 . . Classes Destroyed 3 | . 1 2 . . Tunneler 1 | . . 1 . . Grunt 8 | . 2 6 . . Assembled 13 | . . 13 . . Best Kill Streak 8 | . 2 8 . . Combat Bots Only 8 | . 2 8 . . Max Kills in Single Turn 2 | . 1 2 . . Gunslinging . | . . . . . Exploded 2 | . . 2 . . Melee . | . . . . . Uniques/NPCs Destroyed . | . . . . . Combat | -11 -10 -10 -10 -9 -------- Run | Jun Mat Min Exi Min Damage Taken 1131 | . 98 789 . 244 Core 263 | . 48 123 . 92 Absorbed by Shields . | . . . . . Core Remaining (%) 100 | 100 . . . . Volleys Fired 54 | . 6 48 . . Largest 2 | . 2 2 . . Hottest 90 | . 60 90 . . Shots Fired 72 | . 12 59 1 . Gun 62 | . 12 49 1 . Cannon . | . . . . . Launcher 10 | . . 10 . . Special . | . . . . . Kinetic 6 | . 6 . . . Thermal 6 | . 6 . . . Explosive 10 | . . 10 . . Electromagnetic 50 | . . 49 1 . Robot Hit Streak 9 | . 7 9 . . Robot Miss Streak 5 | . 2 5 . . Penetration Max . | . . . . . Secondary Targets . | . . . . . Shots Hit Robots 55 | . 9 46 . . Core Hits 57 | . 5 52 . . Critical Kills . | . . . . . Critical Parts Destroyed . | . . . . . Critical Strikes . | . . . . . Melee Attacks . | . . . . . Impact . | . . . . . Slashing . | . . . . . Piercing . | . . . . . Sneak Attacks . | . . . . . Combat Hostiles . | . . . . . Follow-up Attacks . | . . . . . Damage Inflicted 1524 | . 108 1416 . . Guns 651 | . 108 543 . . Cannons . | . . . . . Explosions 873 | . . 873 . . Melee . | . . . . . Ramming . | . . . . . Kinetic 65 | . 65 . . . Thermal 197 | . 43 154 . . Explosive 719 | . . 719 . . Electromagnetic 543 | . . 543 . . Impact . | . . . . . Slashing . | . . . . . Piercing . | . . . . . Highest Corruption 1 | . 1 1 1 1 Average Corruption 1 | . 1 1 1 1 Corruption Purged . | . . . . . Corruption Blocked . | . . . . . Effects 9 | . . 6 3 . Message Errors 1 | . . . 1 . Matter Fused 2 | . . 1 1 . Energy Discharges 1 | . . 1 . . Data Loss (minor) 4 | . . 4 . . Misfires 1 | . . . 1 . Overload Shots . | . . . . . Overflow Damage 30 | . . 30 . . Projectiles . | . . . . . Explosions 30 | . . 30 . . Melee . | . . . . . Knockbacks . | . . . . . Impact . | . . . . . Kinetic . | . . . . . Secondary . | . . . . . Self-Inflicted Damage 42 | . . 42 . . Shots 1 | . . 1 . . Rammed . | . . . . . Targets Rammed . | . . . . . Kicked . | . . . . . Crushed . | . . . . . Highest Temperature 100 | . 4 100 8 . Average Temperature 35 | . 2 37 6 . Received Heat Transfer 317 | . 57 260 . . Siege Activations . | . . . . . Robots Corrupted 1 | . . 1 . . Combat Hostiles 1 | . . 1 . . Parts Fried . | . . . . . Impact Corruptions . | . . . . . Robots Melted . | . . . . . Combat Hostiles . | . . . . . Parts Melted . | . . . . . Heat Transferred 250 | . 100 150 . . Parts Sabotaged . | . . . . . Parts Stolen . | . . . . . Parts Stripped . | . . . . . Power Chain Reactions 1 | . . 1 . . Missiles Intercepted . | . . . . . Alert | -11 -10 -10 -10 -9 ------- Run | Jun Mat Min Exi Min Peak Influence 196 | . 80 196 . . Initial 31 | . . 31 . . Average 81 | . 42 97 . . Maximum Alert Level . | . . . . . Low Security (%) 100 | 100 100 100 . 100 Level 1 . | . . . . . Level 2 . | . . . . . Level 3 . | . . . . . Level 4 . | . . . . . Level 5 . | . . . . . High Security . | . . . . . Max Security . | . . . . . Squads Dispatched 1 | . 1 . . . Investigation . | . . . . . Extermination . | . . . . . Reinforcement 1 | . 1 . . . Assault . | . . . . . Garrison . | . . . . . Intercept . | . . . . . Searches Triggered . | . . . . . Construction Impeded . | . . . . . Haulers Reinforced . | . . . . . Active Scanning Responses . | . . . . . Cargo Convoy Interrupts . | . . . . . Stealth | -11 -10 -10 -10 -9 --------- Run | Jun Mat Min Exi Min Distress Signals . | . . . . . Communications Jammed . | . . . . . Distress Signals . | . . . . . Times Spotted 30 | . 4 25 . 1 Peak Tracking Total 8 | . 2 8 . 1 Tactical Retreats . | . . . . . Traps | -11 -10 -10 -10 -9 ------- Run | Jun Mat Min Exi Min Traps Triggered 1 | . 1 . . . Indirectly . | . . . . . Trap Hack Attempts . | . . . . . Triggered . | . . . . . Disarmed . | . . . . . Reprogrammed . | . . . . . Reused . | . . . . . Traps Extracted . | . . . . . Installed . | . . . . . Triggered . | . . . . . Machines | -11 -10 -10 -10 -9 ---------- Run | Jun Mat Min Exi Min Machines Disabled 1 | . . 1 . . Max in Single Turn 1 | . . 1 . . Machines Repaired . | . . . . . Machines Sabotaged . | . . . . . Overloaded Fab Kills . | . . . . . Hacking | -11 -10 -10 -10 -9 --------- Run | Jun Mat Min Exi Min Machines Accessed 2 | . 1 . 1 . Terminals 1 | . 1 . . . Fabricators . | . . . . . Repair Stations . | . . . . . Recycling Units . | . . . . . Scanalyzers . | . . . . . Garrison Access . | . . . . . Total Hacks 3 | . 2 . 1 . Successful 2 | . 1 . 1 . Failed 1 | . 1 . . . Catastrophic . | . . . . . Database Lockouts . | . . . . . Manual 3 | . 2 . 1 . Terminals 2 | . 2 . . . Fabricators . | . . . . . Repair Stations . | . . . . . Recycling Units . | . . . . . Scanalyzers . | . . . . . Garrison Access . | . . . . . Terminal Hacks 1 | . . . 1 . EX-Prototype ID Bank 1 | . . . 1 . Fabricator Hacks . | . . . . . Repair Station Hacks . | . . . . . Recycling Unit Hacks . | . . . . . Scanalyzer . | . . . . . Garrison Access Hacks . | . . . . . Unauthorized Hacks 1 | . 1 . . . Terminals 1 | . 1 . . . Track 1 | . 1 . . . Fabricators . | . . . . . Repair Stations . | . . . . . Recycling Units . | . . . . . Scanalyzers . | . . . . . Garrison Access . | . . . . . Data Cores Recovered . | . . . . . Used . | . . . . . Hacking Detections 1 | . 1 . . . Full Trace Events . | . . . . . Feedback Events . | . . . . . Feedback Blocked . | . . . . . Robot Schematics Acquired . | . . . . . Robots Built . | . . . . . Authchips . | . . . . . Time . | . . . . . Total Robot Build Rating . | . . . . . Part Schematics Acquired . | . . . . . Parts Built . | . . . . . Authchips . | . . . . . Time . | . . . . . Total Part Build Rating . | . . . . . Parts Repaired . | . . . . . Time . | . . . . . Parts Recycled . | . . . . . Recycled Matter . | . . . . . Retrieved Matter . | . . . . . Retrieved Components . | . . . . . Parts Scanalyzed . | . . . . . Part Schematics Acquired . | . . . . . Parts Damaged . | . . . . . Bothacking | -11 -10 -10 -10 -9 ------------ Run | Jun Mat Min Exi Min Used RIF Installer . | . . . . . Robots Hacked . | . . . . . Non-combat . | . . . . . Combat . | . . . . . Robot Hacks Applied . | . . . . . Relay Couplers Released . | . . . . . Fabnet Peak Effective % . | . . . . . Robots Rewired . | . . . . . Allies Hacked . | . . . . . Hacks Repelled . | . . . . . Allies | -11 -10 -10 -10 -9 -------- Run | Jun Mat Min Exi Min Total Allies 2 | . . 2 . . Largest Group 2 | . . 2 . . Highest-Rated Group 50 | . . 50 . . Highest-Rated Ally 31 | . . 31 . . Total Orders . | . . . . . Ally Attacks 7 | . . 7 . . Total Damage 64 | . . 64 . . Kills 2 | . . 2 . . Allies Corrupted . | . . . . . Allies Melted . | . . . . . Intel | -11 -10 -10 -10 -9 ------- Run | Jun Mat Min Exi Min Robot Analysis Total . | . . . . . Derelict Logs Recovered 1 | . . 1 . . Drone Launches . | . . . . . Drone Recoveries . | . . . . . Exploration | -11 -10 -10 -10 -9 ------------- Run | Jun Mat Min Exi Min Turns Passed 1340 | 36 147 752 366 39 Spaces Moved 1030 | 51 178 522 258 21 Core 209 | 49 160 . . . Treads . | . . . . . Legs 275 | . . 204 71 . Wheels 546 | 2 18 318 187 21 Hover . | . . . . . Flight . | . . . . . Fastest Speed 50 | 50 50 105 100 190 Average Speed 108 | 51 56 116 134 190 Slowest Speed 260 | 100 105 260 190 190 Overloaded Moves . | . . . . . Propulsion Burnouts . | . . . . . Robots Hopped . | . . . . . Cave-ins Triggered . | . . . . . Exploration Rate (%) 41 | 3 37 92 60 16 Regions Visited 4 Branch Regions 3 Pre-discovered Areas 1 | . . 1 . . Known Exits Taken . | . . . . . Unknown Exits Taken 4 | 1 1 1 1 . Scrap Searched 1 | . . 1 . . Spaces Dug 8 | . . 8 . . Terrain Destroyed 69 | . . 69 . . Melee . | . . . . . Projectile . | . . . . . AOE 69 | . . 69 . . Terrain Rammed . | . . . . . Walls Destroyed . | . . . . . Machines Disabled . | . . . . . Actions | -11 -10 -10 -10 -9 --------- Run | Jun Mat Min Exi Min Total 1179 | 58 217 605 278 21 Wait 27 | . 7 20 . . Move 1026 | 50 177 521 257 21 Hop . | . . . . . Pick Up 35 | 4 9 7 15 . Fast Attach 11 | 4 2 4 1 . Attach 6 | . 3 2 1 . Detach 3 | . 2 1 . . Swap 6 | . 2 2 2 . Drop 11 | . 9 . 2 . Fire 54 | . 6 48 . . Melee . | . . . . . Ram . | . . . . . Kick . | . . . . . Crush . | . . . . . Escape Stasis . | . . . . . Rewire . | . . . . . Trap . | . . . . . Miscellaneous . | . . . . . Route ------- -11/Junkyard -10/Materials -10/Mines (discovered 2 exits: [*Mat] / *Exi) -10/Exiles -9/Mines History --------- Turn | Location | Event 4 | -11/Junkyard | Discovered new exit (range 16) 37 | -11/Junkyard | Entered Materials 143 | -10/Materials | Discovered new exit (range 16) 184 | -10/Materials | Entered Mines 307 | -10/Mines | Build established: Mutant 384 | -10/Mines | Learned Materials stockpile data 391 | -10/Mines | Deemed a non-threat by the Exiles lab entrance 391 | -10/Mines | Discovered new exit (range 5) 462 | -10/Mines | Learned location of Storage (-8) 538 | -10/Mines | Assembled infested the area 613 | -10/Mines | Core integrity fell below 50% 642 | -10/Mines | Destroyed 8 combat bots 801 | -10/Mines | Discovered new exit (range 9) 911 | -10/Mines | Build established: Scavenger-Mutant 936 | -10/Mines | Entered Exiles 969 | -10/Exiles | Met 8R-AWN 987 | -10/Exiles | Met EX-HEX 1029 | -10/Exiles | Met EX-BIN 1043 | -10/Exiles | Aligned with FarCom system 1044 | -10/Exiles | Given EX-Vault access code 1068 | -10/Exiles | Opened EX-Vault 1073 | -10/Exiles | Found Prototype Energy Cannon 1076 | -10/Exiles | Found Prototype Energy Gun 1082 | -10/Exiles | Identified AWS/Thermal 1082 | -10/Exiles | Identified Gui. Plasma Cannon 1103 | -10/Exiles | Warned to stay clear of 0b10 Research branches 1136 | -10/Exiles | Met EX-DEC 1287 | -10/Exiles | Discovered new exit (range 10) 1302 | -10/Exiles | Stole two prototypes: AWS/Thermal, Gui. Plasma Cannon 1302 | -10/Exiles | Entered Mines 1335 | -9/Mines | Core integrity fell below 20% 1341 | -9/Mines | Destroyed by YI-UF0 with YI-UF0's Doublenader Last Messages --------------- 01177_ Extracted 46 matter. 01179_ Acquired Hcp. Matter Pod. 01182_ Acquired Gui. Plasma Cannon. 01185_ Acquired Carbon-fiber Leg. 01188_ Acquired Arm. Wheel. 01194_ Acquired Wheel. 01197_ Acquired Mak. Leg. 01200_ Acquired Mak. Power Source. 01204_ Acquired Hcp. Storage Unit. 01207_ Acquired Imp. Light Armor Plating. 01210_ Acquired Lrg. Storage Unit. 01213_ Acquired Mni. Grenade Launcher. 01256_ Acquired Humpback. 01287_ EXIT=FOUND 01297_ 5/O>#5NCT/ >2Y&BEP7U JVM:Y#AQDFCV# FEEEL LOCATION=UNKNOWN GOAL=ESCAPE 01302_ Receiving FarCom transmissions... 01339_ K-01 Serf collects debris. 01340_ U-05 Engineer lays Concrete. Map ----- +----------------------------------------------------+ | | | ?????????????????????????????????????????????????? | | ?????????????????????????????????????????????????? | | ?????????????????????????????????????????????????? | | ?????????????????????????????????????????????????? | | ?????????????????????????????????????????????????? | | ?????????????????????????????????????????????????? | | ?????????????????????????????????????????????????? | | ?????????????????????????????????????????????????? | | ?????????????????????????????????????????????????? | | ?????????????????????????????????????????????????? | | ?????????????????????????????????????????????????? | | ???????????????????????????###???????????????????? | | ??????????????????????????? #???????????????????? | | ????????????????#?????????? #???????????????????? | | ???????????????# ???????## ???g????????????????? | | ???????????????# ?????## ???g????????????????? | | ???????????????# #????# #????????????????????? | | ????????# ?????# ????# ##???????????????????? | | ????????? ?????# #????# #???????????????????? | | ?????????# ????# #???? ##??????????????????? | | ?????????# ???# ###### ???????????????????? | | ?????????# #### ## # ????????????????????? | | ?????????# k #?????????????????????? | | ?????????? #?????????????????????? | | ?????????????# @ #?????????????????????? | | ????????Y????# #?????????????????????? | | ?????????????# u #?????????????????????? | | ??###++###???# ##?????????????????????? | | ??# #???# ######?????????????????? | | ??# ##?## $ #?????????????????? | | ??# ### # #????????????????? | | ??# ## ### #????????????????? | | ??# #?# ##????????????????? | | ??# ##?### ##?????????????????? | | ??# #######????## ##??????????????????? | | ??# #???????????### g$ #???????????????????? | | ??#########??????????????## #???????????????????? | | ??????????????????????????? #???????????????????? | | ??????????????????????????? #???????????????????? | | ???????????????????????????? ???????????????????? | | ????????????????????????????? ??????????????????? | | ????????????????????????????? ??????????????????? | | ?????????????????????????????? ??????????????????? | | ?????????????????????????????????????????????????? | | ?????????????????????????????????????????????????? | | ?????????????????????????????????????????????????? | | ?????????????????????????????????????????????????? | | ?????????????????????????????????????????????????? | | ?????????????????????????????????????????????????? | +----------------------------------------------------+ Best States ------------- Heat Dissipation 25 Energy Generation 10 Energy Capacity 250 Matter Stores 300 Matter Capacity 300 Sight Range 16 Terrain Scan Density 10 Armor Coverage 150 Evasion (%) 55 Item Schematics ----------------- None Robot Schematics ------------------ None Fabricated ------------ Nothing Alien Tech Used ----------------- None Achievements -------------- None Challenges ------------ None Game ------ Seed SuperchargedMiniLog Manual? 1 Play Time 00:10:54 Cumulative 423.0 hours Start 2023.04.06 @ 13:38:46 End 2023.04.06 @ 13:54:16 Sessions 1 Manual Loads 0 Difficulty Rogue Special Mode None Game No. 198 Rogue 194 Adventurer 0 Explorer 4 Win Type - Total 24 Types 8/1/2/5/1/2/3/1/1 Lore% 86 Gallery% 88 Achievement% 80 Wizard Run 0 Options --------- ASCII 0 Keyboard 0 Movement Mouse Keybinds 0 Fullscreen 1 Font 18/SmallcapsGlow Map View 76x50 Tactical HUD 1 Map Filters NONE Filters NONE Steam 1 RUN: 91334695-c472-4e19-951e-a627925e9187